Cogmind - Beta 15 @@@ ROGUE MODE // 2025.06.18 @ 00:11:36 Player: Xcalibur Result: Destroyed by Y-54 Guardian with Flak Gun Performance ------------- Evolutions (0) 0 Regions Visited (4) 800 Robots Destroyed (31) 155 Value Destroyed (765) 765 Prototype IDs (11) 220 Alien Tech Used (0) 0 Bonus (85) 85 TOTAL SCORE: 2025 Bonus ------- Follower Combat Kills 85 Cogmind --------- Core Integrity 0/250 Matter 200/300 Energy 265/265 System Corruption 0% Temperature Hot (220) Movement Treading (320) Ox2 Location -7/Recycling Parts ------- > --- POWER (1) -------- Improved Ion Engine > --- PROPULSION (2) --- Light Treads > --- UTILITY (2) ------ High-capacity Storage Unit Medium Armor Plating > --- WEAPON (2) ------- Subdweller Laser Battle Rifle > --- INVENTORY (20) --- Subdweller Power Source Meta Core Subdweller Optics Subdweller Optics Experimental Sensor Array Seismic Detector Medium Armor Plating Scrap Shield Particle Gun Subdweller Laser Particle Cannon Battle Rifle Subdweller Machine Gun Barrage Gun Subdweller Shrapnel Launcher Subdweller Shrapnel Launcher Mining Laser Plasma Flamer Makeshift Sword Peak State ------------ > --- POWER ------------ Improved Ion Engine > --- PROPULSION ------- Light Treads Light Treads > --- UTILITY ---------- High-capacity Storage Unit Medium Armor Plating > --- WEAPON ----------- Subdweller Laser Battle Rifle > --- INVENTORY -------- Subdweller Power Source Meta Core Subdweller Optics Experimental Sensor Array Seismic Detector Medium Armor Plating Scrap Shield Particle Gun Subdweller Laser Particle Cannon Battle Rifle Subdweller Machine Gun Barrage Gun Grenade Launcher Subdweller Shrapnel Launcher Subdweller Shrapnel Launcher Mining Laser Plasma Flamer Makeshift Sword [Rating: 17] Favorites ----------- Power Improved Ion Engine Engine Improved Ion Engine Propulsion Light Treads Treads Light Treads Wheel Compact Wheel Utility High-capacity Storage Unit Device Seismic Detector Storage High-capacity Storage Unit Protection Medium Armor Plating Weapon Assault Rifle Energy Gun Subdweller Laser Energy Cannon Particle Cannon Ballistic Gun Assault Rifle Launcher Subdweller Shrapnel Launcher Special Weapon Mining Laser Build | -11 -10 -10 -10 -7 ------- Run | Yrd Mat Min Sub Rec Slots Evolved . | . . . . . Power . | . . . . . Propulsion . | . . . . . Utility . | . . . . . Weapon . | . . . . . Parts Attached 31 | 7 8 5 10 1 Power 3 | 1 1 . 1 . Engine 3 | 1 1 . 1 . Core . | . . . . . Reactor . | . . . . . Propulsion 5 | 2 2 1 . . Treads 2 | 1 1 . . . Leg . | . . . . . Wheel 3 | 1 1 1 . . Hover . | . . . . . Flight . | . . . . . Utility 8 | 2 2 1 2 1 Device 1 | 1 . . . . Storage 2 | 1 1 . . . Processor . | . . . . . Hackware . | . . . . . Protection 5 | . 1 1 2 1 Artifact . | . . . . . Weapon 15 | 2 3 3 7 . Energy Gun 2 | . . . 2 . Energy Cannon 3 | . 1 1 1 . Ballistic Gun 7 | 2 1 1 3 . Ballistic Cannon . | . . . . . Launcher 2 | . 1 . 1 . Special Weapon 1 | . . 1 . . Impact Weapon . | . . . . . Slashing Weapon . | . . . . . Piercing Weapon . | . . . . . Special Melee Weapon . | . . . . . Unidentified Prototypes . | . . . . . Parts Lost 4 | . . 1 2 1 Power . | . . . . . Propulsion 3 | . . 1 1 1 Utility . | . . . . . Weapon 1 | . . . 1 . Highest Loss Streak 1 | . . 1 1 1 To Critical Strikes . | . . . . . Average Backups 18 | 3 16 19 19 19 Power 1 | . 2 2 1 1 Propulsion 1 | 1 2 1 . . Utility 5 | . 4 7 5 6 Weapon 9 | 1 7 9 10 11 Tool/Special . | . . . . . Unused Backups 27 | . 8 . 6 13 Power 4 | . 2 . 1 1 Propulsion . | . . . . . Utility 10 | . 3 . 3 4 Weapon 12 | . 3 . 2 7 Tool/Special 1 | . . . . 1 Average Slot Usage (%) 99 | . 100 100 99 100 Engine 14 | . 14 14 14 14 Treads 16 | . 14 16 16 28 Wheel 11 | . 13 11 11 . Device 8 | . 7 7 9 . Storage 14 | . 14 14 14 14 Protection 5 | . 6 6 4 14 Energy Cannon 5 | . 2 14 1 . Ballistic Gun 17 | . 22 13 18 14 Launcher 1 | . 3 . 1 . Special Weapon 2 | . . . 5 . Peak Build Rating 17 | 7 12 13 17 17 Average Rating 13 | 5 9 12 15 16 On Entrance 9 | . 7 12 13 17 Naked Turns . | . . . . . Heaviest Build 64 | 14 54 60 64 59 Greatest Support 40 | 20 40 40 40 40 Greatest Overweight (x) 3 | 1 3 3 3 1 Average Overweight (x) 2 | . 2 2 2 1 Largest Inventory Capacity 20 | 8 20 20 20 20 Average Capacity 19 | 7 19 20 20 20 Most Carried 20 | 7 20 20 20 20 Average Carried 19 | 3 16 19 19 20 Final Capacity 20 | 8 20 20 20 20 Final Carried 20 | 7 20 20 20 20 Class Distribution -------------------- 100% | Mutant Dominant Class ---------------- Mutant | -10/Materials Mutant | -10/Mines Mutant | -10/Subcaves Mutant | -7/Recycling Resources | -11 -10 -10 -10 -7 ----------- Run | Yrd Mat Min Sub Rec Matter Collected 973 | 279 125 249 320 . Remotely . | . . . . . Salvage Created 982 | 67 283 365 267 . Parts 57 | 6 15 20 16 . Haulers Intercepted 1 | . 1 . . . Recyclers Shooed . | . . . . . Parts Field Recycled . | . . . . . Retrieved Matter . | . . . . . Parts Self-Destructed 17 | . . . 17 . Prevented . | . . . . . Kills | -11 -10 -10 -10 -7 ------- Run | Yrd Mat Min Sub Rec Combat Hostiles Destroyed 24 | . 7 9 8 . Guns 17 | . 7 2 8 . Cannons 5 | . . 5 . . Classes Destroyed 9 | 2 4 1 2 . Worker 1 | . . 1 . . Tunneler 1 | 1 . . . . Hauler 1 | . 1 . . . Recycler 1 | 1 . . . . Turret 2 | . . . 2 . Watcher 1 | . 1 . . . Swarmer 9 | . 3 2 4 . Grunt 11 | . 4 7 . . Subdweller 4 | . . . 4 . Best Kill Streak 4 | 1 3 2 4 . Combat Bots Only 4 | . 3 2 4 . Max Kills in Single Turn 2 | 1 2 2 1 . Gunslinging 1 | . 1 . . . Exploded . | . . . . . Melee . | . . . . . Uniques/NPCs Destroyed . | . . . . . Combat | -11 -10 -10 -10 -7 -------- Run | Yrd Mat Min Sub Rec Hostile Shots Fired 169 | . 12 50 71 36 Missed 48 | . 2 15 22 9 Hits 121 | . 10 35 49 27 Projectile 121 | . 10 35 49 27 Critical Strikes 4 | . 1 1 2 . Damage Taken 1449 | . 103 425 717 204 Core 250 | . 21 84 97 48 Absorbed by Shields . | . . . . . Core Remaining (%) 100 | 100 . . . . Volleys Fired 130 | 4 15 68 39 4 Largest 2 | 2 2 2 2 2 Hottest 100 | 40 88 100 100 85 Shots Fired 202 | 8 29 94 63 8 Gun 117 | 8 26 26 49 8 Cannon 72 | . 2 66 4 . Launcher 4 | . 1 . 3 . Special 9 | . . 2 7 . Kinetic 105 | 8 26 26 41 4 Thermal 96 | . 2 68 22 4 Explosive 1 | . 1 . . . Electromagnetic . | . . . . . Robot Hit Streak 22 | 4 9 7 22 5 Robot Miss Streak 5 | 1 4 5 3 2 Penetration Max . | . . . . . Secondary Targets 1 | . 1 . . . Max Gunslinging Chain 1 | . 1 . . . Shots Hit Robots 99 | 6 18 28 41 6 Core Hits 50 | 3 14 14 17 2 Critical Kills 4 | 1 . 2 1 . Critical Parts Destroyed 1 | 1 . . . . Critical Strikes 5 | 2 . 2 1 . Meltdown 2 | . . 2 . . Destroy 3 | 2 . . 1 . Melee Attacks . | . . . . . Impact . | . . . . . Slashing . | . . . . . Piercing . | . . . . . Sneak Attacks . | . . . . . Combat Hostiles . | . . . . . Follow-up Attacks . | . . . . . Damage Inflicted 1824 | 59 249 524 878 114 Guns 1186 | 59 199 175 639 114 Cannons 432 | . 21 349 62 . Explosions 206 | . 29 . 177 . Melee . | . . . . . Ramming . | . . . . . Kinetic 1106 | 59 199 175 623 50 Thermal 689 | . 21 349 255 64 Explosive 29 | . 29 . . . Electromagnetic . | . . . . . Impact . | . . . . . Slashing . | . . . . . Piercing . | . . . . . Highest Corruption . | . . . . . Average Corruption . | . . . . . Corruption Purged . | . . . . . Corruption Blocked . | . . . . . Overload Shots . | . . . . . Overflow Damage . | . . . . . Projectiles . | . . . . . Explosions . | . . . . . Melee . | . . . . . Knockbacks . | . . . . . Impact . | . . . . . Kinetic . | . . . . . Secondary . | . . . . . Self-Inflicted Damage 48 | . . . 48 . Shots 1 | . . . 1 . Rammed . | . . . . . Targets Rammed . | . . . . . Kicked . | . . . . . Crushed . | . . . . . Highest Temperature 301 | . 36 221 301 202 Average Temperature 65 | . 10 68 65 109 Received Heat Transfer 798 | . 27 255 456 60 Siege Activations . | . . . . . Martial Activations . | . . . . . Shielding Activations . | . . . . . Robots Disrupted . | . . . . . Combat Hostiles . | . . . . . Robots Corrupted . | . . . . . Combat Hostiles . | . . . . . Parts Fried . | . . . . . Impact Corruptions . | . . . . . Robots Melted 2 | . . 2 . . Combat Hostiles 2 | . . 2 . . Parts Melted 6 | . . 5 1 . Heat Transferred 1077 | . 37 629 336 75 Parts Sabotaged . | . . . . . Parts Stolen . | . . . . . Parts Stripped . | . . . . . Power Chain Reactions . | . . . . . Alert | -11 -10 -10 -10 -7 ------- Run | Yrd Mat Min Sub Rec Maximum Alert Level . | . . . . . Low Security (%) 100 | 100 100 100 . 100 Level 1 . | . . . . . Level 2 . | . . . . . Level 3 . | . . . . . Level 4 . | . . . . . Level 5 . | . . . . . High Security . | . . . . . Max Security . | . . . . . Peak Influence 85 | 5 85 72 . 51 Initial 51 | . . 1 . 51 Average 14 | 1 19 12 . 44 Influence Increases 670 | 10 205 305 150 . Destroy 0b10 Robot/C 460 | . 140 200 120 . Destroy 0b10 Robot/NC 25 | 10 10 5 . . Destroy Leader 64 | . 34 30 . . Allied During Kill 10 | . . 10 . . Disable Machine 15 | . . 15 . . Destroy Structure 6 | . 6 . . . Lose Combat Pursuer 90 | . 15 45 30 . Influence Decreases 639 | 10 199 311 42 77 Entered New Map 62 | . . 5 . 57 Time Decay 527 | 10 199 276 32 10 Lost Part 30 | . . 10 10 10 Lost Ally 20 | . . 20 . . Squads Dispatched 1 | . 1 . . . Investigation . | . . . . . Extermination . | . . . . . Reinforcement 1 | . 1 . . . Assault . | . . . . . Garrison . | . . . . . Intercept . | . . . . . Searches Triggered . | . . . . . Construction Impeded . | . . . . . Haulers Reinforced . | . . . . . Active Scanning Responses . | . . . . . Cargo Convoy Interrupts . | . . . . . Stealth | -11 -10 -10 -10 -7 --------- Run | Yrd Mat Min Sub Rec Distress Signals 1 | . . 1 . . Communications Jammed . | . . . . . Distress Signals . | . . . . . Times Spotted 41 | . 10 17 13 1 Peak Tracking Total 6 | . 3 3 6 1 Tactical Retreats 3 | . 1 1 1 . Traps | -11 -10 -10 -10 -7 ------- Run | Yrd Mat Min Sub Rec Traps Triggered . | . . . . . Indirectly . | . . . . . Trap Hack Attempts . | . . . . . Triggered . | . . . . . Disarmed . | . . . . . Reprogrammed . | . . . . . Reused . | . . . . . Traps Extracted . | . . . . . Installed . | . . . . . Triggered . | . . . . . Machines | -11 -10 -10 -10 -7 ---------- Run | Yrd Mat Min Sub Rec Machines Disabled 6 | . . 1 5 . Max in Single Turn 4 | . . 1 4 . Machines Repaired . | . . . . . Machines Dismantled . | . . . . . Machines Sabotaged . | . . . . . Overloaded Fab Kills . | . . . . . Hacking | -11 -10 -10 -10 -7 --------- Run | Yrd Mat Min Sub Rec Machines Accessed 3 | . 1 . 2 . Terminals 1 | . 1 . . . Fabricators . | . . . . . Repair Stations . | . . . . . Recycling Units . | . . . . . Scanalyzers . | . . . . . Garrison Access . | . . . . . Total Hacks 17 | . 4 . 13 . Successful 14 | . 1 . 13 . Failed 3 | . 3 . . . Catastrophic . | . . . . . Database Lockouts . | . . . . . Manual 4 | . 4 . . . Terminals 4 | . 4 . . . Fabricators . | . . . . . Repair Stations . | . . . . . Recycling Units . | . . . . . Scanalyzers . | . . . . . Garrison Access . | . . . . . Terminal Hacks 13 | . . . 13 . Record 12 | . . . 12 . Proto ID Catalog 1 | . . . 1 . Fabricator Hacks . | . . . . . Repair Station Hacks . | . . . . . Recycling Unit Hacks . | . . . . . Scanalyzer . | . . . . . Garrison Access Hacks . | . . . . . Unauthorized Hacks 1 | . 1 . . . Terminals 1 | . 1 . . . Botnet 1 | . 1 . . . Fabricators . | . . . . . Repair Stations . | . . . . . Recycling Units . | . . . . . Scanalyzers . | . . . . . Garrison Access . | . . . . . Data Cores Recovered . | . . . . . Used . | . . . . . Hacking Detections 1 | . 1 . . . Full Trace Events . | . . . . . Feedback Events . | . . . . . Feedback Blocked . | . . . . . Robot Schematics Acquired . | . . . . . Robots Built . | . . . . . Authchips . | . . . . . Time . | . . . . . Total Robot Build Rating . | . . . . . Part Schematics Acquired . | . . . . . Parts Built . | . . . . . Authchips . | . . . . . Time . | . . . . . Total Part Build Rating . | . . . . . Parts Repaired . | . . . . . Time . | . . . . . Parts Recycled . | . . . . . Recycled Matter . | . . . . . Retrieved Matter . | . . . . . Retrieved Components . | . . . . . Parts Scanalyzed . | . . . . . Part Schematics Acquired . | . . . . . Parts Damaged . | . . . . . Bothacking | -11 -10 -10 -10 -7 ------------ Run | Yrd Mat Min Sub Rec Used RIF Installer . | . . . . . Robots Hacked . | . . . . . Non-combat . | . . . . . Combat . | . . . . . Robot Hacks Applied . | . . . . . Relay Couplers Released . | . . . . . Fabnet Peak Effective % . | . . . . . Robots Rewired . | . . . . . Allies Hacked . | . . . . . Hacks Repelled . | . . . . . Allies | -11 -10 -10 -10 -7 -------- Run | Yrd Mat Min Sub Rec Total Allies 3 | . . 3 . . Largest Group 3 | . . 3 2 . Highest-Rated Group 40 | . . 40 24 . Highest-Rated Ally 16 | . . 16 16 . Total Orders . | . . . . . Ally Attacks 21 | . . 11 10 . Total Damage 248 | . . 113 135 . Kills 3 | . . 1 2 . Allies Corrupted . | . . . . . Allies Melted . | . . . . . Intel | -11 -10 -10 -10 -7 ------- Run | Yrd Mat Min Sub Rec Active Infowar (turns) 2679 | 55 336 755 1533 . Seismic 2679 | 55 336 755 1533 . Robot Analysis Total . | . . . . . Derelict Logs Recovered 1 | . . 1 . . Drone Launches . | . . . . . Drone Recoveries . | . . . . . Exploration | -11 -10 -10 -10 -7 ------------- Run | Yrd Mat Min Sub Rec Turns Passed 4538 | 112 660 1416 2314 36 Spaces Moved 2487 | 48 361 727 1345 6 Core 2 | 2 . . . . Treads 316 | 44 3 88 175 6 Legs . | . . . . . Wheels 2169 | 2 358 639 1170 . Hover . | . . . . . Flight . | . . . . . Fastest Speed 50 | 50 100 145 145 240 Average Speed 155 | 153 143 156 157 240 Slowest Speed 240 | 160 240 240 240 240 Overloaded Moves . | . . . . . Propulsion Burnouts . | . . . . . Robots Hopped . | . . . . . Potential Cave-ins . | . . . . . Cave-ins Triggered . | . . . . . Exploration Rate (%) 45 | 4 51 98 71 3 Regions Visited 4 Branch Regions 3 Pre-discovered Areas 1 | . . . 1 . Known Exits Taken . | . . . . . Unknown Exits Taken 4 | 1 1 1 1 . Scrap Searched 8 | . . 3 5 . Spaces Dug 15 | . . 15 . . Terrain Destroyed 59 | . 6 17 36 . Melee . | . . . . . Projectile 19 | . . 17 2 . AOE 40 | . 6 . 34 . Terrain Rammed . | . . . . . Walls Destroyed . | . . . . . Machines Disabled . | . . . . . Actions | -11 -10 -10 -10 -7 --------- Run | Yrd Mat Min Sub Rec Total 2957 | 75 483 903 1477 19 Wait 195 | 10 59 92 27 7 Move 2483 | 47 360 726 1344 6 Hop . | . . . . . Pick Up 54 | 7 24 3 20 . Fast Attach 10 | 7 1 . 2 . Attach 6 | . . 2 4 . Detach 2 | . . . 2 . Swap 39 | . 9 10 18 2 Drop 38 | . 15 2 21 . Fire 130 | 4 15 68 39 4 Melee . | . . . . . Ram . | . . . . . Kick . | . . . . . Crush . | . . . . . Escape Stasis . | . . . . . Rewire . | . . . . . Trap . | . . . . . Miscellaneous . | . . . . . Route ------- -11/Scrapyard -10/Materials -10/Mines (discovered 3 exits: [*Mat x2] / *Sub) -10/Subcaves (discovered 2 exits: [*Mat] / [*Rec]) -7/Recycling History --------- Turn | Location | Event 33 | -11/Scrapyard | Discovered new exit (range 15) 113 | -11/Scrapyard | Entered Materials 315 | -10/Materials | Build established: Mutant 766 | -10/Materials | Discovered new exit (range 6) 773 | -10/Materials | Entered Mines 783 | -10/Mines | Met a Derelict bent on vengeance 923 | -10/Mines | Excavation squad dispatched 923 | -10/Mines | A large section of the Mines collapsed 1173 | -10/Mines | Excavation squad dispatched 1199 | -10/Mines | A weapon hastily lodged in a ceiling crevice suddenly fell to the ground 1277 | -10/Mines | Assisted by bots powering up and referring to "LRC-V3" 1317 | -10/Mines | Discovered new exit (range 7) 1564 | -10/Mines | Found a damaged Exp. Sensor Array with a note attached 1569 | -10/Mines | Found Prototype Device 1684 | -10/Mines | Discovered new exit (range 3) 2131 | -10/Mines | Learned location of 1 exit from Materials 2186 | -10/Mines | Discovered new exit (range 3) 2189 | -10/Mines | Entered Subcaves 2189 | -10/Subcaves | Accompanied by 2 allies 2417 | -10/Subcaves | Visited 4L-MR0's lab 2457 | -10/Subcaves | Found Meta Core 2527 | -10/Subcaves | Learned location of Zion (-6) 2527 | -10/Subcaves | Met a Zionite searching for "candidates" 2541 | -10/Subcaves | Core integrity fell below 50% 2556 | -10/Subcaves | Shifting Twisted Machinery released Barrage Gun 3226 | -10/Subcaves | Shifting Twisted Machinery released Sub. Shrapnel Launcher 3352 | -10/Subcaves | Shifting Twisted Machinery released Sub. Shrapnel Launcher 3376 | -10/Subcaves | Shifting Twisted Machinery released Scrap Shield 3578 | -10/Subcaves | A swath of the cavern ceiling suddenly collapsed 3623 | -10/Subcaves | Discovered new exit (range 14) 3939 | -10/Subcaves | Visited Clippyterm 3944 | -10/Subcaves | Learned Factory trap positions 4009 | -10/Subcaves | Disturbed a concealed Subdweller 4298 | -10/Subcaves | Shifting Twisted Machinery released Enh. Flamer 4456 | -10/Subcaves | Core integrity fell below 20% 4466 | -10/Subcaves | Discovered new exit (range 15) 4503 | -10/Subcaves | Entered Recycling 4539 | -7/Recycling | Destroyed by Y-54 Guardian with Flak Gun Last Messages --------------- 04204_ Destroyed Flight Unit. 04206_ Flight Unit fries itself beyond repair. 04210_ Lgt. Assault Rifle fries itself beyond repair. 04211_ Battle Rifle destroyed. 04212_ S-10 Pest suffers critical hit (Destroy). 04212_ S-10 Pest destroyed. 04215_ Lgt. Ion Engine fries itself beyond repair. 04216_ Acquired 39 matter. 04219_ Lgt. Ion Engine fries itself beyond repair. 04252_ Dropped Battle Rifle. 04252_ Acquired Battle Rifle. Enh. Flamer falls loose from the Twisted Machinery. 04302_ Acquired 10 matter. 04457_ Machine disabled. 04457_ Autobeam Turret destroyed. 04466_ EXIT=FOUND LOCATION=UNKNOWN GOAL=ESCAPE 04513_ Y-54 Guardian springs to life. 04533_ Lgt. Treads destroyed. Map ----- +----------------------------------------------------+ | ?????????????????????????????????????????????????? | | ?????????????????????????????????????????????????? | | ?????????????????????????????????????????????????? | | ?????????????????????????????????????????????????? | | ?????????????????????????????????????????????????? | | ?????????????????????????????????????????????????? | | ?????????????????????????????????????????????????? | | ?????????????????????????????????????????????????? | | ?????????????????????????????????????????????????? | | ?????????????????????????????????????????????????? | | ?????????????????????????????????????????????????? | | ?????????????????????????????????????????????????? | | ?????????????????????????????????????????????????? | | ?????????????????????????????????????????????????? | | ?????????????????????????????????????????????????? | | ?????????????????????????????????????????????????? | | ??????????????#??????????????????????????????????? | | ??????????????# ?????????????????????????????????? | | ???????????????# ???????????????????????????????? | | ??????????????## ??????????????????????????????? | | ??????????????# ###########??????????????????? | | ??????????????# #??????????????????? | | ??????????????# #??????????????????? | | ??????????????# #??????????????????? | | ??????????????# #####Y /###??????????????????? | | ????????????????????????#@//#????????????????????? | | ????????????????????????#####????????????????????? | | ?????????????????????????????????????????????????? | | ?????????????????????????????????????????????????? | | ?????????????????????????????????????????????????? | | ?????????????????????????????????????????????????? | | | | | | | | | | | | | | | | | | | | | | | | | | | | | | | | | | | | | | | +----------------------------------------------------+ Best States ------------- Heat Dissipation 25 Energy Generation 12 Energy Capacity 265 Matter Stores 300 Matter Capacity 300 Sight Range 16 Terrain Scan Density 10 Armor Coverage 225 Evasion (%) 40 Recoil Reduction 2 Item Schematics ----------------- None Robot Schematics ------------------ None Fabricated ------------ Nothing Repaired ---------- Nothing Alien Tech Used ----------------- None Achievements -------------- None Challenges ------------ None Game ------ Seed TrapDiametricHammer Manual? 0 Play Time 00:47:08 Cumulative 104.0 hours Start 2025.06.17 @ 23:09:58 End 2025.06.18 @ 00:11:36 Sessions 1 Manual Loads 0 Difficulty Rogue Special Mode None Game No. 44 Rogue 44 Adventurer 0 Explorer 0 Win Type - Total 4 Types 4/0/0/0/0/0/0/0/0/0 Lore% 44 Gallery% 45 Achievement% 46 Wizard Run 0 Options --------- Layout 0 ASCII 0 Keyboard 0 Movement Arrows Keybinds 0 Fullscreen 2 Font 18/Terminus Map View 76x50 Zoom Use 0% Tactical HUD 1 Map Filters NONE Filters NONE Steam 1 RUN: cf6ee93d-442d-42ac-84e6-8aeb34a55dce